fUST/lending_fUST_20250103
["ID","MTS","AMOUNT","RATE_DAILY","PERIOD"]
[347501224,1735883444153,-500.0,0.00019178,2]
[347501225,1735883444162,-1043.12,0.00019178,2]
[347501226,1735883444172,-500.0,0.00019178,2]
[347501227,1735883444182,-796.87,0.00019178,2]
[347501228,1735883444191,-2308.67,0.00019178,2]
[347501229,1735883444200,-447.22273968,0.00019178,2]
[347501230,1735883444212,-463.82946097,0.00019178,2]
[347501231,1735883444223,-499.9967325,0.00019178,2]
[347501232,1735883444234,-153.13106685,0.00019178,2]
[347501233,1735883444243,-500.0,0.00019178,2]
[347501234,1735883444255,-873.38,0.00019178,2]
[347501235,1735883444264,-500.0,0.00019178,2]
[347501236,1735883444274,-369.87313715,0.00019178,2]
[347501252,1735883446717,-130.12686285,0.00019178,2]
[347501253,1735883446727,-580.71433298,0.00019178,2]
[347501255,1735883446736,-504.17902072,0.00019178,2]
[347501257,1735883446745,-694.1,0.00019178,2]
[347501259,1735883446754,-107.67988345,0.00019178,2]
[347501262,1735883446766,-392.32011655,0.00019178,2]
[347501264,1735883446776,-855.08961155,0.00019178,2]
[347501270,1735883446826,-631.56,0.00019178,2]
[347501275,1735883590275,500.0,0.00025,120]
[347501278,1735883987099,373.105417,0.00013973,2]
[347501300,1735884611225,1046.0,0.00025,120]
[347501308,1735884631951,-813.803,0.0001822,2]
[347501309,1735884631961,-12440.91549983,0.00018245,2]
[347501335,1735884634082,-928.73237632,0.00018245,2]
[347501336,1735884634094,-11530.35212385,0.00018245,2]
[347501337,1735884634103,-177.807,0.00018574,2]
[347501338,1735884634113,-203.59596595,0.00018773,2]
[347501339,1735884634123,-15750.46452018,0.000188,2]
[347501348,1735884637822,-1334.10007078,0.000188,2]
[347501349,1735884637831,-162.2013259,0.00018886,2]
[347501350,1735884637841,-238.9624696,0.00018986,2]
[347501351,1735884637851,-503.35870197,0.00019173,2]
[347501352,1735884637860,-500.0,0.00019173,2]
[347501353,1735884637870,-500.0,0.00019173,2]
[347501354,1735884637879,-216.10800219,0.00019173,2]
[347501355,1735884637889,-151.0,0.00019177,2]
[347501356,1735884637898,-760.86441165,0.00019178,2]
[347501377,1735884639909,-147.76820039,0.00019178,2]
[347501378,1735884639919,-189.66754816,0.00019178,2]
[347501391,1735884645873,-238.9624696,0.00018796,2]
[347501392,1735884645883,-199.75433747,0.00019177,2]
[347501393,1735884645893,-20164.94681576,0.00019178,2]
[347501394,1735884645903,-151.0,0.00019178,2]
[347501395,1735884645912,-151.0,0.00019178,2]
[347501396,1735884645922,-151.0,0.00019178,2]
[347501397,1735884645931,-151.0,0.00019178,2]
[347501398,1735884645941,-151.0,0.00019178,2]
[347501399,1735884645950,-151.0,0.00019178,2]
[347501400,1735884645960,-740.54,0.00019178,2]
[347501401,1735884645969,-151.0,0.00019178,2]
[347501402,1735884645978,-151.0,0.00019178,2]
[347501403,1735884645988,-151.0,0.00019178,2]
[347501404,1735884645998,-151.0,0.00019178,2]
[347501405,1735884646007,-151.0,0.00019178,2]
[347501406,1735884646016,-151.0,0.00019178,2]
[347501407,1735884646026,-151.0,0.00019178,2]
[347501408,1735884646035,-151.0,0.00019178,2]
[347501409,1735884646045,-151.0,0.00019178,2]
[347501410,1735884646055,-151.0,0.00019178,2]
[347501411,1735884646064,-232.020404,0.00019178,2]
[347501412,1735884646073,-538.79475046,0.00019178,2]
[347501413,1735884646083,-156.195253,0.00019178,2]
[347501414,1735884646092,-156.195253,0.00019178,2]
[347501415,1735884646101,-156.195253,0.00019178,2]
[347501416,1735884646111,-156.195253,0.00019178,2]
[347501417,1735884646120,-156.195253,0.00019178,2]
[347501418,1735884646129,-156.195253,0.00019178,2]
[347501419,1735884646138,-156.195253,0.00019178,2]
[347501420,1735884646147,-156.195253,0.00019178,2]
[347501421,1735884646157,-156.195253,0.00019178,2]
[347501422,1735884646166,-156.195253,0.00019178,2]
[347501423,1735884646176,-156.195253,0.00019178,2]
[347501424,1735884646186,-156.195253,0.00019178,2]
[347501425,1735884646195,-156.195253,0.00019178,2]
[347501426,1735884646205,-156.195253,0.00019178,2]
[347501427,1735884646215,-156.195253,0.00019178,2]
[347501428,1735884646224,-156.195253,0.00019178,2]
[347501429,1735884646233,-156.195253,0.00019178,2]
[347501430,1735884646243,-156.195253,0.00019178,2]
[347501431,1735884646254,-156.195253,0.00019178,2]
[347501432,1735884646264,-156.195249,0.00019178,2]
[347501433,1735884646276,-151.0,0.00019178,2]
[347501434,1735884646287,-151.0,0.00019178,2]
[347501435,1735884646296,-151.0,0.00019178,2]
[347501436,1735884646306,-151.0,0.00019178,2]
[347501437,1735884646316,-500.0,0.00019178,2]
[347501438,1735884646325,-505.70325562,0.00019178,2]
[347501439,1735884646334,-151.0,0.00019178,2]
[347501440,1735884646344,-151.0,0.00019178,2]
[347501441,1735884646354,-151.0,0.00019178,2]
[347501442,1735884646364,-151.0,0.00019178,2]
[347501443,1735884646373,-151.0,0.00019178,2]
[347501444,1735884646383,-151.0,0.00019178,2]
[347501445,1735884646393,-151.0,0.00019178,2]
[347501446,1735884646402,-151.0,0.00019178,2]
[347501447,1735884646411,-500.0,0.00019178,2]
[347501448,1735884646424,-236.383036,0.00019178,2]
[347501449,1735884646434,-500.0,0.00019178,2]
[347501450,1735884646443,-500.0,0.00019178,2]
[347501451,1735884646452,-510.407044,0.00019178,2]
[347501452,1735884646461,-510.407044,0.00019178,2]
[347501453,1735884646471,-510.407044,0.00019178,2]
[347501454,1735884646480,-510.407044,0.00019178,2]
[347501455,1735884646490,-510.407044,0.00019178,2]
[347501456,1735884646500,-510.407044,0.00019178,2]
[347501457,1735884646510,-510.407044,0.00019178,2]
[347501458,1735884646519,-510.407044,0.00019178,2]
[347501459,1735884646529,-510.407044,0.00019178,2]
[347501460,1735884646539,-510.407044,0.00019178,2]
[347501461,1735884646548,-500.0,0.00019178,2]
[347501462,1735884646558,-500.0,0.00019178,2]
[347501463,1735884646567,-500.0,0.00019178,2]
[347501464,1735884646577,-151.0,0.00019178,2]
[347501465,1735884646588,-151.0,0.00019178,2]
[347501466,1735884646598,-151.0,0.00019178,2]
[347501467,1735884646607,-151.0,0.00019178,2]
[347501468,1735884646617,-500.0,0.00019178,2]
[347501469,1735884646626,-500.0,0.00019178,2]
[347501470,1735884646636,-502.6,0.00019178,2]
[347501471,1735884646646,-502.6,0.00019178,2]
[347501472,1735884646656,-502.6,0.00019178,2]
[347501473,1735884646665,-502.6,0.00019178,2]
[347501474,1735884646675,-502.6,0.00019178,2]
[347501475,1735884646684,-502.6,0.00019178,2]
[347501476,1735884646693,-502.6,0.00019178,2]
[347501477,1735884646703,-502.6,0.00019178,2]
[347501478,1735884646715,-157.309134,0.00019178,2]
[347501479,1735884646724,-157.309134,0.00019178,2]
[347501480,1735884646735,-502.6,0.00019178,2]
[347501481,1735884646744,-157.309134,0.00019178,2]
[347501482,1735884646754,-500.0,0.00019178,2]
[347501483,1735884646764,-157.309134,0.00019178,2]
[347501484,1735884646773,-502.6,0.00019178,2]
[347501485,1735884646783,-157.309134,0.00019178,2]
[347501486,1735884646794,-500.0,0.00019178,2]
[347501487,1735884646804,-157.309134,0.00019178,2]
[347501488,1735884646813,-157.309134,0.00019178,2]
[347501489,1735884646823,-157.309134,0.00019178,2]
[347501490,1735884646834,-157.309134,0.00019178,2]
[347501491,1735884646844,-157.309134,0.00019178,2]
[347501492,1735884646853,-500.0,0.00019178,2]
[347501493,1735884646863,-607.51,0.00019178,2]
[347501494,1735884646872,-500.0,0.00019178,2]
[347501495,1735884646882,-717.21,0.00019178,2]
[347501496,1735884646892,-500.0,0.00019178,2]
[347501497,1735884646901,-609.61,0.00019178,2]
[347501498,1735884646911,-500.0,0.00019178,2]
[347501499,1735884646921,-500.0,0.00019178,2]
[347501500,1735884646930,-500.0,0.00019178,2]
[347501501,1735884646939,-500.0,0.00019178,2]
[347501502,1735884646949,-500.0,0.00019178,2]
[347501503,1735884646958,-500.0,0.00019178,2]
[347501504,1735884646968,-500.0,0.00019178,2]
[347501505,1735884646977,-155.481543,0.00019178,2]
[347501506,1735884646987,-155.481543,0.00019178,2]
[347501507,1735884646996,-155.481543,0.00019178,2]
[347501508,1735884647006,-155.481543,0.00019178,2]
[347501509,1735884647015,-155.481543,0.00019178,2]
[347501510,1735884647024,-155.481543,0.00019178,2]
[347501511,1735884647033,-500.0,0.00019178,2]
[347501512,1735884647043,-155.481543,0.00019178,2]
[347501513,1735884647052,-155.481543,0.00019178,2]
[347501514,1735884647062,-155.481543,0.00019178,2]
[347501515,1735884647071,-155.481543,0.00019178,2]
[347501516,1735884647080,-155.481543,0.00019178,2]
[347501517,1735884647091,-155.481543,0.00019178,2]
[347501518,1735884647100,-412.66426868,0.00019178,2]
[347501519,1735884647109,-89.27655484,0.00019178,2]
[347501520,1735884647124,-410.72344516,0.00019178,2]
[347501521,1735884647133,-500.0,0.00019178,2]
[347501522,1735884647143,-151.0,0.00019178,2]
[347501523,1735884647153,-500.0,0.00019178,2]
[347501524,1735884647162,-500.0,0.00019178,2]
[347501525,1735884647171,-500.0,0.00019178,2]
[347501526,1735884647181,-500.0,0.00019178,2]
[347501527,1735884647190,-5613.99,0.00019178,2]
[347501528,1735884647200,-500.0,0.00019178,2]
[347501529,1735884647209,-695.41,0.00019178,2]
[347501530,1735884647218,-695.41,0.00019178,2]
[347501531,1735884647228,-695.41,0.00019178,2]
[347501532,1735884647237,-230.48142079,0.00019178,2]
[347501533,1735884647250,-464.92857921,0.00019178,2]
[347501534,1735884647259,-621.87142094,0.00019178,2]
[347501535,1735884914548,381.54421,0.00013973,2]
[347501559,1735885695562,6777.21261992,0.000125,2]
[347501652,1735885834772,-423.8193786,0.0001615,2]
[347501653,1735885834782,-423.8193786,0.00016313,2]
[347501654,1735885834792,-5269.1172012,0.00017788,2]
[347501655,1735885834803,-171.719054,0.0001793,2]
[347501656,1735885834812,-887.0594786,0.00018116,2]
[347501657,1735885834822,-806.547,0.0001822,2]
[347501658,1735885834831,-481.3071415,0.00018986,2]
[347501659,1735885834841,-302.66710251,0.00019,2]
[347501660,1735885834851,-175.37427114,0.00019046,2]
[347501661,1735885834860,-300.0,0.00019068,2]
[347501662,1735885834871,-10579.55317666,0.00019069,2]
[347501663,1735885834881,-152.0,0.00019112,2]
[347501664,1735885834890,-210.0,0.0001917,2]
[347501665,1735885834899,-500.76307733,0.00019173,2]
[347501666,1735885834912,-500.55717492,0.00019173,2]
[347501667,1735885834921,-150.53,0.00019173,2]
[347501668,1735885834936,-509.11657474,0.00019177,5]
[347501669,1735885834945,-40827.40485395,0.00019178,2]
[347501688,1735885838225,-4734.70684597,0.00019178,2]
[347501689,1735885838236,-710.8949439,0.00019178,2]
[347501690,1735885840051,-1174.75915857,0.00019178,2]
[347501691,1735885840060,-151.0,0.00019178,2]
[347501692,1735885840070,-151.0,0.00019178,2]
[347501693,1735885840079,-151.0,0.00019178,2]
[347501695,1735885840089,-151.0,0.00019178,2]
[347501697,1735885840099,-151.0,0.00019178,2]
[347501699,1735885840108,-151.0,0.00019178,2]
[347501700,1735885840117,-151.0,0.00019178,2]
[347501701,1735885840129,-151.0,0.00019178,2]
[347501702,1735885840139,-151.0,0.00019178,2]
[347501703,1735885840148,-151.0,0.00019178,2]
[347501704,1735885840159,-151.0,0.00019178,2]
[347501705,1735885840169,-151.0,0.00019178,2]
[347501706,1735885840179,-151.0,0.00019178,2]
[347501707,1735885840188,-151.0,0.00019178,2]
[347501709,1735885840198,-155.729693,0.00019178,2]
[347501711,1735885840208,-220.654938,0.00019178,2]
[347501712,1735885840217,-220.654938,0.00019178,2]
[347501713,1735885840226,-220.654938,0.00019178,2]
[347501714,1735885840235,-220.654938,0.00019178,2]
[347501715,1735885840245,-220.654938,0.00019178,2]
[347501716,1735885840253,-220.654938,0.00019178,2]
[347501717,1735885840263,-220.654938,0.00019178,2]
[347501718,1735885840273,-220.654938,0.00019178,2]
[347501719,1735885840283,-220.654938,0.00019178,2]
[347501720,1735885840293,-220.654938,0.00019178,2]
[347501721,1735885840302,-220.654938,0.00019178,2]
[347501722,1735885840312,-3524.8,0.00019178,2]
[347501723,1735885840322,-500.0,0.00019178,2]
[347501724,1735885840331,-151.0,0.00019178,2]
[347501725,1735885840341,-490.58179665,0.00019178,2]
[347501726,1735885840352,-151.0,0.00019178,2]
[347501727,1735885840362,-348.85707521,0.00019178,2]
[347501728,1735885840371,-500.0,0.00019178,2]
[347501729,1735885840380,-500.0,0.00019178,2]
[347501730,1735885840391,-500.0,0.00019178,2]
[347501731,1735885840400,-506.33697437,0.00019178,2]
[347501732,1735885840410,-500.0,0.00019178,2]
[347501733,1735885840420,-151.0,0.00019178,2]
[347501734,1735885840429,-505.05982226,0.00019178,2]
[347501735,1735885840439,-500.0,0.00019178,2]
[347501736,1735885840448,-155.531659,0.00019178,2]
[347501737,1735885840457,-500.0,0.00019178,2]
[347501738,1735885840467,-503.86829391,0.00019178,2]
[347501739,1735885840477,-500.0,0.00019178,2]
[347501740,1735885840487,-505.99867267,0.00019178,2]
[347501741,1735885840497,-504.64036021,0.00019178,2]
[347501742,1735885840506,-500.0,0.00019178,2]
[347501743,1735885840516,-988.77681036,0.00019178,2]
[347501744,1735885840526,-500.0,0.00019178,2]
[347501745,1735885840536,-500.0,0.00019178,2]
[347501746,1735885840545,-500.0,0.00019178,2]
[347501747,1735885840554,-500.0,0.00019178,2]
[347501748,1735885840563,-500.0,0.00019178,2]
[347501749,1735885840573,-500.0,0.00019178,2]
[347501750,1735885840706,-500.0,0.00019178,2]
[347501751,1735885840717,-500.0,0.00019178,2]
[347501752,1735885840727,-151.0,0.00019178,2]
[347501753,1735885840735,-151.0,0.00019178,2]
[347501754,1735885840745,-9.03344379,0.00019178,2]
[347501755,1735885840840,-628.3436368,0.00019178,2]
[347501756,1735885840850,-284.97,0.00019178,2]
[347501757,1735885840860,-500.0,0.00019178,2]
[347501758,1735885840869,-500.0,0.00019178,2]
[347501759,1735885840879,-500.0,0.00019178,2]
[347501760,1735885840888,-175.15933187,0.00019178,2]
[347501761,1735885840898,-603.03,0.00019178,2]
[347501762,1735885840907,-708.16,0.00019178,2]
[347501763,1735885840916,-208.77629,0.00019178,2]
[347501764,1735885840926,-208.77629,0.00019178,2]
[347501765,1735885840935,-608.1,0.00019178,2]
[347501766,1735885840944,-208.77629,0.00019178,2]
[347501767,1735885840953,-208.77629,0.00019178,2]
[347501768,1735885840963,-500.0,0.00019178,2]
[347501769,1735885840972,-500.0,0.00019178,2]
[347501770,1735885840981,-500.0,0.00019178,2]
[347501771,1735885840990,-500.0,0.00019178,2]
[347501772,1735885840999,-899.94,0.00019178,2]
[347501773,1735885841010,-500.0,0.00019178,2]
[347501774,1735885841019,-500.0,0.00019178,2]
[347501775,1735885841028,-500.0,0.00019178,2]
[347501776,1735885841038,-355.96833791,0.00019178,2]
[347501777,1735885841051,-341.62166209,0.00019178,2]
[347501778,1735885841060,-151.0,0.00019178,2]
[347501779,1735885841069,-151.0,0.00019178,2]
[347501780,1735885841078,-324.97833791,0.00019178,2]
[347501781,1735885841094,-254.53166209,0.00019178,2]
[347501782,1735885841104,-579.51,0.00019178,2]
[347501783,1735885841112,-209.65833791,0.00019178,2]
[347501784,1735885841128,-369.85166209,0.00019178,2]
[347501785,1735885841138,-52.45069718,0.00019178,2]
[347501786,1735885841149,-312.2633,0.00019178,2]
[347501791,1735885843144,-214.79600282,0.00019178,2]
[347501792,1735885843154,-579.51,0.00019178,2]
[347501793,1735885843166,-500.0,0.00019178,2]
[347501794,1735885843175,-784.5,0.00019178,2]
[347501795,1735885843185,-1519.84,0.00019178,2]
[347501797,1735885843195,-500.0,0.00019178,2]
[347501799,1735885843204,-509.99529374,0.00019178,2]
[347501801,1735885843215,-151.0,0.00019178,2]
[347501803,1735885843225,-151.0,0.00019178,2]
[347501804,1735885843235,-500.0,0.00019178,2]
[347501805,1735885843244,-500.0,0.00019178,2]
[347501806,1735885843254,-686.01,0.00019178,2]
[347501807,1735885843263,-6319.66900219,0.00019178,2]
[347501808,1735885843275,-6184.42631804,0.00019178,2]
[347501809,1735885843286,-9078.88467977,0.00019178,2]
[347501811,1735885843295,-500.0,0.00019178,2]
[347501813,1735885843304,-500.0,0.00019178,2]
[347501815,1735885843314,-500.0,0.00019178,2]
[347501816,1735885843323,-500.0,0.00019178,2]
[347501817,1735885843333,-500.0,0.00019178,2]
[347501818,1735885843343,-845.02,0.00019178,2]
[347501819,1735885843353,-899.49,0.00019178,2]
[347501820,1735885843362,-991.61,0.00019178,2]
[347501821,1735885843372,-500.0,0.00019178,2]
[347501822,1735885843382,-503.06585654,0.00019178,2]
[347501823,1735885843391,-500.0,0.00019178,2]
[347501824,1735885843400,-813.17,0.00019178,2]
[347501825,1735885843411,-500.0,0.00019178,2]
[347501826,1735885843420,-573.86,0.00019178,2]
[347501827,1735885843430,-500.0,0.00019178,2]
[347501828,1735885843439,-527.3,0.00019178,2]
[347501829,1735885843448,-500.0,0.00019178,2]
[347501830,1735885843458,-693.99,0.00019178,2]
[347501831,1735885843467,-500.0,0.00019178,2]
[347501832,1735885843476,-500.0,0.00019178,2]
[347501833,1735885843490,-500.0,0.00019178,2]
[347501834,1735885843499,-500.0,0.00019178,2]
[347501835,1735885843508,-500.0,0.00019178,2]
[347501836,1735885843519,-517.32,0.00019178,2]
[347501837,1735885843528,-500.0,0.00019178,2]
[347501838,1735885843537,-912.3,0.00019178,2]
[347501839,1735885843546,-998.07346991,0.00019178,2]
[347501840,1735885843558,-966.97,0.00019178,2]
[347501884,1735885850151,362.466999,0.00013973,2]
[347501897,1735886732636,1295.35,0.00014001,2]
[347501902,1735886898553,358.380522,0.00013973,2]
[347501927,1735887032431,-166.096572,0.00016969,2]
[347501928,1735887032441,-224.2776304,0.00017146,2]
[347501929,1735887032450,-361.44058326,0.00017319,2]
[347501930,1735887032461,-361.44058322,0.00017319,2]
[347501931,1735887032471,-361.44058322,0.00017319,2]
[347501933,1735887032481,-361.44058322,0.0001732,2]
[347501935,1735887032491,-361.44058322,0.0001732,2]
[347501937,1735887032499,-361.44058322,0.0001732,2]
[347501939,1735887032509,-9713.9460619,0.0001742,2]
[347501941,1735887032518,-3685.1522983,0.00017503,2]
[347501943,1735887032527,-180.21521658,0.00017777,2]
[347501945,1735887032536,-810.66362869,0.00018151,2]
[347501947,1735887032546,-797.891,0.0001822,2]
[347501949,1735887032555,-465.61131572,0.00018262,2]
[347501951,1735887032564,-240.6535708,0.00018986,2]
[347501953,1735887032573,-16042.8073,0.00019,3]
[347501955,1735887032583,-302.8788636,0.00019,2]
[347501957,1735887032591,-154.09016568,0.00019077,2]
[347501959,1735887032601,-174.16981734,0.00019078,2]
[347501961,1735887032610,-411.0,0.0001917,2]
[347501962,1735887032619,-5437.58903725,0.00019171,2]
[347501963,1735887032628,-500.0,0.00019173,2]
[347501964,1735887032637,-500.0,0.00019173,2]
[347501965,1735887032646,-500.0,0.00019173,2]
[347501966,1735887032656,-200.09656262,0.00019177,2]
[347501967,1735887032665,-157.254,0.00019177,2]
[347501968,1735887032674,-332.538063,0.00019177,2]
[347501969,1735887032683,-332.538063,0.00019177,2]
[347501970,1735887032692,-232.86597,0.00019177,2]
[347501971,1735887032701,-167.021032,0.00019177,2]
[347501972,1735887032711,-167.021032,0.00019177,2]
[347501973,1735887032720,-500.0,0.00019177,2]
[347501974,1735887032730,-500.0,0.00019177,2]
[347501975,1735887032739,-842.95304475,0.00019177,2]
[347501976,1735887032748,-500.0,0.00019177,2]
[347501977,1735887032758,-842.95304475,0.00019177,2]
[347501978,1735887032766,-602.33546094,0.00019177,2]
[347501979,1735887032776,-500.0,0.00019177,2]
[347501980,1735887032785,-500.0,0.00019177,2]
[347501981,1735887032794,-446.59725382,0.00019177,2]
[347501982,1735887032804,-842.95304475,0.00019177,2]
[347501983,1735887032812,-842.95304475,0.00019177,2]
[347501984,1735887032822,-452.02964409,0.00019177,2]
[347501985,1735887032832,-842.95304475,0.00019177,2]
[347501986,1735887032843,-842.95304475,0.00019177,2]
[347501987,1735887032852,-842.95304475,0.00019177,2]
[347501988,1735887032861,-842.95304475,0.00019177,2]
[347501989,1735887032870,-842.95304475,0.00019177,2]
[347501990,1735887032879,-842.95304475,0.00019177,2]
[347501991,1735887032888,-842.95304475,0.00019177,2]
[347501992,1735887032897,-842.95304475,0.00019177,2]
[347501993,1735887032907,-842.95304475,0.00019177,2]
[347501994,1735887032916,-842.95304475,0.00019177,2]
[347501995,1735887032925,-842.95304475,0.00019177,2]
[347501996,1735887032934,-842.95304475,0.00019177,2]
[347501997,1735887032943,-842.95304475,0.00019177,2]
[347501998,1735887032953,-842.95304475,0.00019177,2]
[347501999,1735887032962,-842.95304475,0.00019177,2]
[347502000,1735887032971,-842.95304475,0.00019177,2]
[347502001,1735887032980,-842.95304475,0.00019177,2]
[347502002,1735887032990,-842.95304475,0.00019177,2]
[347502003,1735887032999,-842.95304475,0.00019177,2]
[347502004,1735887033009,-842.95304475,0.00019177,2]
[347502005,1735887033018,-842.95304475,0.00019177,2]
[347502006,1735887033027,-842.95304475,0.00019177,2]
[347502007,1735887033037,-842.95304475,0.00019177,2]
[347502008,1735887033046,-842.95304475,0.00019177,2]
[347502009,1735887033056,-842.95304475,0.00019177,2]
[347502010,1735887033065,-842.95304475,0.00019177,2]
[347502011,1735887033075,-842.95304475,0.00019177,2]
[347502012,1735887033085,-842.95304475,0.00019177,2]
[347502013,1735887033094,-842.95304475,0.00019177,2]
[347502014,1735887033103,-842.95304475,0.00019177,2]
[347502015,1735887033113,-842.95304475,0.00019177,2]
[347502016,1735887033122,-842.95304475,0.00019177,2]
[347502017,1735887033131,-11.47475073,0.00019177,2]
[347502018,1735887033144,-831.47829402,0.00019177,2]
[347502019,1735887033153,-842.95304475,0.00019177,2]
[347502020,1735887033164,-390.07425483,0.00019177,2]
[347502021,1735887033176,-452.87878992,0.00019177,2]
[347502022,1735887033186,-842.95304475,0.00019177,2]
[347502023,1735887033197,-573.38009964,0.00019177,2]
[347502024,1735887033209,-269.57294511,0.00019177,2]
[347502025,1735887033221,-213.14705489,0.00019177,2]
[347502026,1735887033237,-629.80598986,0.00019177,2]
[347502027,1735887033247,-4.10108813,0.00019177,2]
[347502028,1735887033259,-838.85195662,0.00019177,2]
[347502029,1735887033268,-727.69744766,0.00019177,2]
[347502030,1735887033280,-115.25559709,0.00019177,2]
[347502031,1735887033290,-842.95304475,0.00019177,2]
[347502032,1735887033300,-842.95304475,0.00019177,2]
[347502033,1735887033310,-842.95304475,0.00019177,2]
[347502034,1735887033320,-834.52351431,0.00019177,2]
[347502035,1735887033330,-5.98433451,0.00019177,2]
[347502065,1735887038123,-828.5391798,0.00019177,2]
[347502066,1735887038133,-834.52351431,0.00019177,2]
[347502067,1735887038143,-834.52351431,0.00019177,2]
[347502068,1735887038153,-834.52351431,0.00019177,2]
[347502069,1735887038162,-624.73945964,0.00019177,2]
[347502070,1735887038173,-209.78405467,0.00019177,2]
[347502071,1735887038182,-834.52351431,0.00019177,2]
[347502073,1735887038192,-834.52351431,0.00019177,2]
[347502075,1735887038203,-834.52351431,0.00019177,2]
[347502076,1735887038212,-834.52351431,0.00019177,2]
[347502078,1735887038221,-834.52351431,0.00019177,2]
[347502080,1735887038231,-834.52351431,0.00019177,2]
[347502082,1735887038241,-834.52351431,0.00019177,2]
[347502084,1735887038250,-834.52351431,0.00019177,2]
[347502086,1735887038260,-834.52351431,0.00019177,2]
[347502088,1735887038269,-834.52351431,0.00019177,2]
[347502090,1735887038278,-834.52351431,0.00019177,2]
[347502092,1735887038287,-834.52351431,0.00019177,2]
[347502094,1735887038296,-834.52351431,0.00019177,2]
[347502097,1735887038306,-834.52351431,0.00019177,2]
[347502100,1735887038315,-834.52351431,0.00019177,2]
[347502102,1735887038324,-834.52351431,0.00019177,2]
[347502104,1735887038334,-834.52351431,0.00019177,2]
[347502105,1735887038343,-834.52351431,0.00019177,2]
[347502106,1735887038352,-834.52351431,0.00019177,2]
[347502107,1735887038361,-834.52351431,0.00019177,2]
[347502108,1735887038370,-834.52351431,0.00019177,2]
[347502109,1735887038380,-754.80271059,0.00019177,2]
[347502117,1735887040219,-79.72080372,0.00019177,2]
[347502118,1735887040229,-538.99595523,0.00019177,2]
[347502119,1735887040258,-295.52755908,0.00019177,2]
[347502121,1735887040268,-826.93693691,0.00019177,2]
[347502123,1735887040277,-801.76464888,0.00019177,2]
[347502185,1735887043317,-25.17228803,0.00019177,2]
[347502187,1735887043327,-826.93693691,0.00019177,2]
[347502189,1735887043336,-826.93693691,0.00019177,2]
[347502191,1735887043345,-826.93693691,0.00019177,2]
[347502193,1735887043355,-826.93693691,0.00019177,2]
[347502195,1735887043364,-826.93693691,0.00019177,2]
[347502197,1735887043374,-826.93693691,0.00019177,2]
[347502199,1735887043385,-826.93693691,0.00019177,2]
[347502201,1735887043395,-826.93693691,0.00019177,2]
[347502203,1735887043404,-826.93693691,0.00019177,2]
[347502205,1735887043413,-1086.32339752,0.00019178,2]
[347502208,1735887043422,-29312.27770563,0.00019178,2]
[347502211,1735887043431,-500.73019856,0.00019178,2]
[347502214,1735887043440,-500.0,0.00019178,2]
[347502216,1735887043451,-151.0,0.00019178,2]
[347502218,1735887043460,-151.0,0.00019178,2]
[347502221,1735887043469,-151.0,0.00019178,2]
[347502224,1735887043478,-151.0,0.00019178,2]
[347502227,1735887043487,-2309.61,0.00019178,2]
[347502230,1735887043496,-525.66,0.00019178,2]
[347502233,1735887043505,-500.0,0.00019178,2]
[347502235,1735887043515,-1387.24,0.00019178,2]
[347502237,1735887043524,-500.0,0.00019178,2]
[347502239,1735887043533,-292.36703202,0.00019178,2]
[347502241,1735887043542,-500.87459655,0.00019178,2]
[347502243,1735887043551,-500.0,0.00019178,2]
[347502245,1735887043560,-500.0,0.00019178,2]